Cogmind - Beta 13 @@@ ROGUE MODE // 2024.03.17 @ 21:37:11 Player: Waste Result: Destroyed by Executioner with Helical Railgun Performance ------------- Evolutions (5) 2500 Regions Visited (14) 2800 Robots Destroyed (205) 1025 Value Destroyed (9255) 9255 Prototype IDs (26) 520 Alien Tech Used (0) 0 Bonus (4529) 4529 TOTAL SCORE: 20629 Bonus ------- High Alert Combat Kills 1341 Follower Combat Kills 718 Entered Garrisons 200 Acquired ECA 300 Met Warlord at Base 500 MAIN.C Attacked Warlord 500 Warlord Defense Kills 1338 Friendly Fire -368 Cogmind --------- Core Integrity 0/1000 Matter 300/300 Energy 100/100 System Corruption 0% Temperature Cool (0) Movement Core (1350) Ox26 Location -5/Warlord Parts ------- > --- POWER (2) -------- (None) > --- PROPULSION (4) --- (None) > --- UTILITY (7) ------ Scrap Engine Huge Storage Unit > --- WEAPON (4) ------- (None) > --- INVENTORY (25) --- Improved Heat Sink Experimental Heat Sink Matter Compressor (250) Hardened Light Armor Plating Hardened Light Armor Plating Insulated Plating Damper Plating Makeshift Hacking Suite Makeshift Hacking Suite Heavy Rocket Launcher Smartbomb Launcher Multitool Makeshift Axe Peak State ------------ > --- POWER ------------ Meta Core Fission-Nuclear Core > --- PROPULSION ------- Titanium Leg Cargo Legs Flying Antigrav-VTOL Exoskeleton > --- UTILITY ---------- Armored Scrap Engine Improved Heat Sink Huge Storage Unit Advanced Gravity Neutralizer Structural Scanner Improved Signal Interpreter Advanced Targeting Computer Hardened Medium Armor Plating Hacking Suite > --- WEAPON ----------- Hpw. Laser Plasma Construct/G Directed Construct/C Entropic Driver Construct/C Thermic Caster Construct/G Shotgun Kinetic Gauss Construct/G > --- INVENTORY -------- Matter Compressor Damper Plating Heavy Rocket Launcher Heavy Rocket Launcher Multitool Makeshift Axe [Rating: 120] Favorites ----------- Power Cooled Ion Engine Engine Cooled Ion Engine Power Core Constructs Propulsion Advanced Treads Treads Advanced Treads Leg Titanium Leg Wheel Compact Wheel Flight Unit Constructs Utility Huge Storage Unit Device Improved Heat Sink Storage Huge Storage Unit Processor Advanced Targeting Computer Hackware Hacking Suite Protection Hardened Medium Armor Plating Weapon Gauss Rifle Energy Gun Constructs Energy Cannon Constructs Ballistic Gun Gauss Rifle Ballistic Cannon Light Cannon Launcher Heavy Rocket Launcher Impact Weapon Hammer Slashing Weapon Makeshift Axe Build | -11 -10 -10 -8 -8 -8 -8 -8 -6 -5 -5 -5 -5 -5 -5 ------- Run | Yrd Mat Sub Mat Gar Mat Sto Rec Fac Fac Was Fac Upp Upp War Slots Evolved 10 | . . . 4 . . . . 4 2 . . . . . Power 1 | . . . . . . . . . 1 . . . . . Propulsion 2 | . . . 1 . . . . 1 . . . . . . Utility 5 | . . . 2 . . . . 3 . . . . . . Weapon 2 | . . . 1 . . . . . 1 . . . . . Parts Attached 130 | . 9 21 18 18 16 17 . 14 5 . 6 1 1 4 Power 11 | . . 4 1 2 2 1 . . 1 . . . . . Engine 6 | . . 4 1 . . 1 . . . . . . . . Core 5 | . . . . 2 2 . . . 1 . . . . . Reactor . | . . . . . . . . . . . . . . . Propulsion 35 | . 3 5 2 4 5 7 . 8 . . . . . 1 Treads 12 | . . . 1 4 . 4 . 2 . . . . . 1 Leg 12 | . 1 2 . . 3 . . 6 . . . . . . Wheel 11 | . 2 3 1 . 2 3 . . . . . . . . Hover . | . . . . . . . . . . . . . . . Flight . | . . . . . . . . . . . . . . . Utility 38 | . 3 2 3 8 3 4 . 6 1 . 5 . . 3 Device 14 | . . . . 4 1 . . 3 1 . 4 . . 1 Storage 3 | . 2 . . . . . . . . . 1 . . . Processor 4 | . . . . . . 2 . 1 . . . . . 1 Hackware 1 | . . . . . . . . 1 . . . . . . Protection 16 | . 1 2 3 4 2 2 . 1 . . . . . 1 Artifact . | . . . . . . . . . . . . . . . Weapon 46 | . 3 10 12 4 6 5 . . 3 . 1 1 1 . Energy Gun . | . . . . . . . . . . . . . . . Energy Cannon 7 | . 1 4 1 1 . . . . . . . . . . Ballistic Gun 18 | . 1 1 4 3 5 4 . . . . . . . . Ballistic Cannon 1 | . . 1 . . . . . . . . . . . . Launcher 10 | . 1 1 3 . 1 . . . 1 . 1 1 1 . Special Weapon . | . . . . . . . . . . . . . . . Impact Weapon 4 | . . 3 1 . . . . . . . . . . . Slashing Weapon 6 | . . . 3 . . 1 . . 2 . . . . . Piercing Weapon . | . . . . . . . . . . . . . . . Special Melee Weapon . | . . . . . . . . . . . . . . . Unidentified Prototypes 6 | . . . 2 . . 1 . . . . 1 . . 2 Parts Lost 54 | . . 8 5 4 6 3 . 2 . . 4 2 2 18 Power 7 | . . 3 . . . . . . . . . 1 1 2 Propulsion 13 | . . 2 . 1 2 3 . 1 . . . . 1 3 Utility 18 | . . 1 2 2 1 . . 1 . . 3 . . 8 Weapon 16 | . . 2 3 1 3 . . . . . 1 1 . 5 Highest Loss Streak 7 | . . 4 2 1 2 1 . 2 . . 2 2 2 7 To Critical Strikes . | . . . . . . . . . . . . . . . Average Slot Usage (%) 88 | . 99 89 91 97 98 94 100 89 77 82 84 75 68 70 Engine 6 | . 14 13 9 3 . 8 9 5 1 . . . . 7 Core 2 | . . . . 5 9 . . . 6 5 4 . . . Treads 7 | . . . 8 16 11 8 27 9 2 1 3 . . . Leg 6 | . 21 5 1 . 6 1 . 12 9 9 9 10 7 4 Wheel 5 | . 6 18 13 9 8 14 . . 1 1 . . . . Device 10 | . . . . 11 18 11 9 12 12 13 16 16 16 14 Storage 8 | . 14 14 9 9 9 9 9 5 4 4 4 4 5 5 Processor 5 | . . . . . . 7 9 12 9 9 9 10 11 11 Hackware 1 | . . . . . . . . . 4 4 4 4 5 4 Protection 8 | . 13 8 23 14 8 6 9 6 9 9 4 . . . Energy Gun 3 | . . . . . . . . 2 7 9 4 7 16 9 Energy Cannon 3 | . 9 10 . 2 5 . . 1 . . 2 4 . 5 Ballistic Gun 13 | . 17 4 9 24 20 26 27 9 4 7 6 3 . 3 Ballistic Cannon 1 | . . 8 . . . . . 4 . . 6 . . . Naked Turns . | . . . . . . . . . . . . . . . Heaviest Build 215 | 12 92 96 103 106 106 108 108 117 135 142 215 134 120 125 Greatest Support 108 | 20 26 36 36 40 30 66 66 72 72 72 108 72 72 55 Greatest Overweight (x) 40 | . 3 9 6 6 10 10 1 3 1 1 2 1 1 40 Average Overweight (x) 2 | . . 3 3 5 5 5 1 1 1 1 1 1 1 2 Largest Inventory Capacity 25 | 8 25 25 25 25 25 25 25 25 25 25 25 25 25 25 Average Capacity 24 | 8 14 25 25 25 25 25 25 25 25 25 25 25 25 25 Most Carried 25 | 6 9 21 25 25 25 25 25 24 15 10 14 17 17 21 Average Carried 17 | 6 8 14 22 24 23 23 24 22 6 5 10 14 16 17 Final Capacity 25 | 8 25 25 25 25 25 25 25 25 25 25 25 25 25 25 Final Carried 25 | 6 9 19 25 25 22 25 25 15 4 10 13 17 16 17 Scrap Engine Consumption 201 | . . . . . . . . 53 13 31 22 8 . 74 Constructs Created 12 | . . . . . . . . 4 2 2 . . . 4 Constructs Modified 46 | . . . . . . . . 11 8 7 9 7 . 4 Class Distribution -------------------- 21% | Mutant 20% | Gunner 16% | Commander-Gunner 15% | Scavenger-Tank 10% | Tank 6% | Scavenger-Gunner 3% | Skirmisher 3% | Derelict-Mutant Dominant Class ---------------- Mutant | -10/Materials Mutant | -10/Subcaves Derelict-Mutant | -8/Materials Scavenger-Tank | -8/Garrison Scavenger-Tank | -8/Materials Scavenger-Gunner | -8/Storage Commander-Gunner | -8/Recycling Skirmisher | -6/Factory Tank | -5/Factory Tank | -5/Waste Gunner | -5/Factory Gunner | -5/Upper Caves Gunner | -5/Upper Caves Commander-Gunner | -5/Warlord Resources | -11 -10 -10 -8 -8 -8 -8 -8 -6 -5 -5 -5 -5 -5 -5 ----------- Run | Yrd Mat Sub Mat Gar Mat Sto Rec Fac Fac Was Fac Upp Upp War Matter Collected 5101 | 200 79 274 246 1207 582 691 88 271 49 190 632 421 71 100 Remotely . | . . . . . . . . . . . . . . . Salvage Created 7817 | . 200 439 648 1197 1315 1173 58 451 331 . 1052 383 119 451 Parts 387 | . 24 19 33 68 78 61 3 22 8 . 47 10 1 13 Haulers Intercepted 7 | . . . 2 . . 4 . . 1 . . . . . Recyclers Shooed 6 | . . . 1 . . 2 . . . . 3 . . . Parts Field Recycled . | . . . . . . . . . . . . . . . Retrieved Matter . | . . . . . . . . . . . . . . . Parts Self-Destructed 17 | . . 9 . . . . . . . . . 6 2 . Prevented 6 | . . . . . . . . . . . . 2 4 . Kills | -11 -10 -10 -8 -8 -8 -8 -8 -6 -5 -5 -5 -5 -5 -5 ------- Run | Yrd Mat Sub Mat Gar Mat Sto Rec Fac Fac Was Fac Upp Upp War Combat Hostiles Destroyed 169 | . 7 12 14 27 29 15 1 8 9 . 25 9 3 10 Melee 8 | . . 1 7 . . . . . . . . . . . Guns 83 | . 2 3 3 23 12 15 1 5 2 . 7 5 1 4 Cannons 32 | . 2 5 . 4 5 . . 3 . . 7 . . 6 AOE 44 | . 3 2 4 . 12 . . . 7 . 10 4 2 . Classes Destroyed 21 | . 3 3 6 3 2 . . . . . 2 1 . 1 Worker 9 | . . . 1 . 2 4 . . 2 . . . . . Builder 9 | . . . 1 . 4 1 1 . . . 2 . . . Hauler 7 | . . . 2 . . 4 . . 1 . . . . . Recycler 3 | . . . 1 . . 2 . . . . . . . . Mechanic 2 | . . . . . 1 1 . . . . . . . . Watcher 5 | . 2 . 1 1 . 1 . . . . . . . . Swarmer 16 | . 3 1 3 4 . . . . 4 . . 1 . . Cutter 2 | . . . . 2 . . . . . . . . . . Grunt 82 | . 4 1 8 12 18 5 . 5 5 . 13 6 2 3 Brawler 7 | . . . . 2 2 1 . . . . . . 1 1 Duelist 5 | . . . 1 1 2 . . . . . . . . 1 Protector 2 | . . . . . 2 . . . . . . . . . Sentry 22 | . . 1 1 2 4 8 1 2 . . 2 1 . . Specialist 4 | . . . . . . . . . . . 2 . . 2 Hunter 8 | . . . 1 2 1 1 . . . . 3 . . . Programmer 10 | . . . . 2 . . . 2 . . 4 . . 2 Heavy 1 | . . . . . . . . . . . 1 . . . Behemoth 1 | . . . . . . . . . . . . 1 . . Striker 1 | . . . . . . . . . . . . . . 1 Artisan 1 | . . 1 . . . . . . . . . . . . Subdweller 9 | . . 9 . . . . . . . . . . . . Best Kill Streak 12 | . 4 3 6 4 12 7 1 3 9 . 8 5 3 6 Combat Bots Only 12 | . 3 3 4 4 12 5 1 3 7 . 8 5 3 6 Max Kills in Single Turn 4 | . 4 2 2 2 3 2 1 2 4 . 2 1 1 2 Gunslinging 1 | . . . . . 1 . . . . . . . . . Exploded 3 | . 3 2 2 . 3 . . . 3 . 2 1 1 . Melee 1 | . . 1 1 . . . . . . . . . . . Uniques/NPCs Destroyed . | . . . . . . . . . . . . . . . Combat | -11 -10 -10 -8 -8 -8 -8 -8 -6 -5 -5 -5 -5 -5 -5 -------- Run | Yrd Mat Sub Mat Gar Mat Sto Rec Fac Fac Was Fac Upp Upp War Hostile Shots Fired 862 | . 29 66 81 136 88 32 2 68 23 . 144 36 9 148 Missed 234 | . 10 16 23 37 21 6 . 14 12 . 44 12 3 36 Damage Taken 11523 | . 262 1059 838 1294 1047 407 26 799 206 . 2081 533 183 2788 Core 1641 | . 23 156 100 137 46 38 . 129 13 . 200 156 12 631 Absorbed by Shields 352 | . . . . 22 . . . . . . . . . 330 Redirected to Shielding 19 | . . . 16 3 . . . . . . . . . . Ignored by Resistances 38 | . . . 38 . . . . . . . . . . . Regen/Repaired (Parts) 1303 | . . . . . . 213 . 65 11 122 549 175 . 168 Core Remaining (%) 63 | 100 . 28 . . . . 41 84 . . . . . . Volleys Fired 389 | . 20 32 14 97 54 43 2 19 16 . 55 19 5 13 Largest 5 | . 2 2 3 3 3 3 3 3 3 . 5 4 3 4 Hottest 262 | . 80 140 75 130 133 81 81 148 157 . 260 262 179 246 Shots Fired 1061 | . 38 62 30 272 149 122 7 57 40 . 184 46 9 45 Gun 778 | . 26 19 25 241 115 122 7 45 36 . 87 24 6 25 Cannon 242 | . 10 42 . 31 28 . . 12 . . 84 15 . 20 Launcher 41 | . 2 1 5 . 6 . . . 4 . 13 7 3 . Special . | . . . . . . . . . . . . . . . Kinetic 692 | . 26 26 25 241 115 122 7 35 24 . 59 . . 12 Thermal 274 | . 10 35 . 31 28 . . 16 12 . 98 27 4 13 Explosive 41 | . 2 1 5 . 6 . . . 4 . 13 7 3 . Electromagnetic 34 | . . . . . . . . 6 . . 14 12 2 . Entropic 20 | . . . . . . . . . . . . . . 20 Robot Hit Streak 21 | . 8 19 20 12 9 17 6 10 11 . 20 21 4 12 Robot Miss Streak 6 | . 6 3 3 2 3 5 1 2 4 . 5 3 2 1 Penetration Max 1 | . . . . . . 1 . 1 . . 1 . . 1 Secondary Targets 6 | . . . 1 1 1 1 . 2 . . . . . . Max Gunslinging Chain 1 | . . . 1 1 1 1 . 1 . . . . . . Shots Hit Robots 707 | . 18 66 49 157 84 74 5 37 25 . 125 34 5 28 Core Hits 401 | . 15 16 28 56 63 43 2 24 26 . 77 27 7 17 Critical Kills 2 | . . 1 . . . 1 . . . . . . . . Critical Parts Destroyed 7 | . . 2 1 1 1 2 . . . . . . . . Critical Strikes 20 | . . 4 3 1 1 3 . . . . 2 . . 6 Burn 2 | . . . . . . . . . . . 2 . . . Destroy 5 | . . . . 1 1 3 . . . . . . . . Smash 5 | . . 4 1 . . . . . . . . . . . Sever 2 | . . . 2 . . . . . . . . . . . Sunder 6 | . . . . . . . . . . . . . . 6 Melee Attacks 81 | . . 36 44 . . 1 . . . . . . . . Impact 44 | . . 36 8 . . . . . . . . . . . Slashing 37 | . . . 36 . . 1 . . . . . . . . Piercing . | . . . . . . . . . . . . . . . Sneak Attacks 8 | . . 2 6 . . . . . . . . . . . Combat Hostiles . | . . . . . . . . . . . . . . . Follow-up Attacks 9 | . . . 9 . . . . . . . . . . . Damage Inflicted 22079 | . 409 1507 2222 3027 3023 1641 140 1005 1579 . 4318 1379 348 1481 Guns 9256 | . 84 324 264 2422 1116 1638 109 653 463 . 1162 496 48 477 Cannons 4784 | . 106 682 . 605 548 . . 259 . . 1260 320 . 1004 Explosions 6248 | . 189 81 757 . 1329 . . 93 1116 . 1820 563 300 . Melee 1621 | . . 420 1201 . . . . . . . . . . . Ramming 170 | . 30 . . . 30 3 31 . . . 76 . . . Kinetic 7679 | . 84 419 264 2422 1116 1638 109 543 197 . 764 . . 123 Thermal 5907 | . 106 587 . 605 548 . . 277 954 . 1641 802 33 354 Explosive 5138 | . 189 81 757 . 1329 . . . 428 . 1692 362 300 . Electromagnetic 560 | . . . . . . . . 185 . . 145 215 15 . Impact 655 | . . 420 235 . . . . . . . . . . . Slashing 966 | . . . 966 . . . . . . . . . . . Piercing . | . . . . . . . . . . . . . . . Entropic 1004 | . . . . . . . . . . . . . . 1004 Highest Corruption 4 | . . . . . . 1 1 3 . . 4 4 4 4 Average Corruption 2 | . . . . . . 1 1 2 . . 3 4 4 4 Corruption Purged . | . . . . . . . . . . . . . . . Corruption Blocked 2 | . . . . . . . . . . . . . . 2 Effects 57 | . . . . . . 7 9 . . . 16 16 8 1 Message Errors 14 | . . . . . . 2 4 . . . 3 3 1 1 Matter Fused 11 | . . . . . . 1 . . . . 6 1 3 . Heat Flow Errors 6 | . . . . . . . 1 . . . 1 2 2 . Energy Discharges 13 | . . . . . . 2 1 . . . 3 6 1 . Parts Fused 2 | . . . . . . . . . . . 1 1 . . Data Loss (minor) 6 | . . . . . . . 2 . . . . 3 1 . Data Loss (major) 1 | . . . . . . 1 . . . . . . . . Misfires 2 | . . . . . . 1 1 . . . . . . . Alerts 1 | . . . . . . . . . . . 1 . . . Weapon Failures 1 | . . . . . . . . . . . 1 . . . Overload Shots . | . . . . . . . . . . . . . . . Overflow Damage 417 | . . 101 170 16 14 . . . 44 . 33 . . 39 Projectiles 66 | . . . . 16 . . . . . . 11 . . 39 Explosions 135 | . . 14 41 . 14 . . . 44 . 22 . . . Melee 216 | . . 87 129 . . . . . . . . . . . Knockbacks 14 | . . 2 1 . . . . . . . 11 . . . Impact 3 | . . 1 1 . . . . . . . 1 . . . Kinetic 11 | . . 1 . . . . . . . . 10 . . . Secondary . | . . . . . . . . . . . . . . . Self-Inflicted Damage 301 | . 40 . 62 . 56 1 . 54 19 . . . 69 . Shots 13 | . 2 . 4 . 1 . . 2 1 . . . 3 . Rammed 5 | . . . . . 1 1 3 . . . . . . . Targets Rammed 19 | . 6 . . . 1 1 4 . . . 7 . . . Kicked 13 | . 6 . . . . . . . . . 7 . . . Crushed 1 | . . . . . . . 1 . . . . . . . Highest Temperature 628 | . 290 168 193 239 78 . 258 524 307 . 628 213 193 195 Average Temperature 101 | . 88 86 61 47 31 . 107 225 122 . 147 52 119 62 Received Heat Transfer 2874 | . 84 129 396 528 432 108 27 153 54 . 316 171 54 422 Effects 19 | . . . . 1 . . . 9 . . 9 . . . Shutdowns 5 | . . . . . . . . 1 . . 4 . . . Energy Bleed 4 | . . . . . . . . 2 . . 2 . . . Interference 4 | . . . . 1 . . . 3 . . . . . . Matter Decay 2 | . . . . . . . . 1 . . 1 . . . Short Circuit 2 | . . . . . . . . 1 . . 1 . . . Damage (minor) 1 | . . . . . . . . . . . 1 . . . Damage (major) 1 | . . . . . . . . 1 . . . . . . Siege Activations . | . . . . . . . . . . . . . . . Robots Corrupted . | . . . . . . . . . . . . . . . Combat Hostiles . | . . . . . . . . . . . . . . . Parts Fried 2 | . . 2 . . . . . . . . . . . . Impact Corruptions 5 | . . 4 1 . . . . . . . . . . . Robots Melted 1 | . . . . . . . . . . . 1 . . . Combat Hostiles 1 | . . . . . . . . . . . 1 . . . Parts Melted 11 | . . 1 . 1 1 . . 1 . . 6 1 . . Heat Transferred 8012 | . 222 1147 . 777 740 . . 124 400 . 2754 1248 50 550 Parts Sabotaged . | . . . . . . . . . . . . . . . Parts Stolen . | . . . . . . . . . . . . . . . Parts Stripped . | . . . . . . . . . . . . . . . Power Chain Reactions 2 | . . . . . . . . 1 . . . 1 . . Alert | -11 -10 -10 -8 -8 -8 -8 -8 -6 -5 -5 -5 -5 -5 -5 ------- Run | Yrd Mat Sub Mat Gar Mat Sto Rec Fac Fac Was Fac Upp Upp War Peak Influence 1267 | . 187 . 262 1267 1188 876 370 159 477 113 638 . . . Initial 617 | . . . . 153 617 501 252 . 46 113 . . . . Average 303 | . 49 . 163 688 729 663 95 32 147 57 122 . . . Maximum Alert Level 4 | . . . 1 4 4 3 1 . 2 . 2 . . . Low Security (%) 55 | 100 100 . 49 7 . . 75 100 71 100 84 . . . Level 1 11 | . . . 50 14 . . 24 . 17 . 5 . . . Level 2 18 | . . . . 30 53 64 . . 10 . 9 . . . Level 3 12 | . . . . 32 43 35 . . . . . . . . Level 4 2 | . . . . 14 2 . . . . . . . . . Level 5 . | . . . . . . . . . . . . . . . High Security . | . . . . . . . . . . . . . . . Max Security . | . . . . . . . . . . . . . . . Squads Dispatched 22 | . 2 . 1 . 9 1 . 2 2 . 5 . . . Investigation 5 | . 2 . . . 3 . . . . . . . . . Extermination 2 | . . . . . . . . 1 . . 1 . . . Reinforcement 10 | . . . 1 . 1 1 . 1 2 . 4 . . . Assault 2 | . . . . . 2 . . . . . . . . . Garrison 3 | . . . . . 3 . . . . . . . . . Intercept . | . . . . . . . . . . . . . . . Searches Triggered . | . . . . . . . . . . . . . . . Construction Impeded 3 | . . . . . 1 . . 1 . . 1 . . . Haulers Reinforced 1 | . . . . . . . . . 1 . . . . . Active Scanning Responses . | . . . . . . . . . . . . . . . Cargo Convoy Interrupts . | . . . . . . . . . . . . . . . Stealth | -11 -10 -10 -8 -8 -8 -8 -8 -6 -5 -5 -5 -5 -5 -5 --------- Run | Yrd Mat Sub Mat Gar Mat Sto Rec Fac Fac Was Fac Upp Upp War Distress Signals 10 | . 1 . 2 2 1 2 . . 1 . . . . 1 Communications Jammed . | . . . . . . . . . . . . . . . Distress Signals . | . . . . . . . . . . . . . . . Times Spotted 268 | . 16 14 26 37 32 18 2 16 7 1 29 8 3 59 Peak Tracking Total 18 | . 5 3 6 5 8 4 2 5 6 1 9 4 3 18 Tactical Retreats 6 | . . 1 1 2 1 . . . . . . . . 1 Traps | -11 -10 -10 -8 -8 -8 -8 -8 -6 -5 -5 -5 -5 -5 -5 ------- Run | Yrd Mat Sub Mat Gar Mat Sto Rec Fac Fac Was Fac Upp Upp War Traps Triggered 7 | . 2 1 . 3 . . . . 1 . . . . . Indirectly . | . . . . . . . . . . . . . . . Trap Hack Attempts . | . . . . . . . . . . . . . . . Triggered . | . . . . . . . . . . . . . . . Disarmed . | . . . . . . . . . . . . . . . Reprogrammed . | . . . . . . . . . . . . . . . Reused . | . . . . . . . . . . . . . . . Traps Extracted . | . . . . . . . . . . . . . . . Installed . | . . . . . . . . . . . . . . . Triggered 16 | . . . . . . . . . . . . . 4 12 Machines | -11 -10 -10 -8 -8 -8 -8 -8 -6 -5 -5 -5 -5 -5 -5 ---------- Run | Yrd Mat Sub Mat Gar Mat Sto Rec Fac Fac Was Fac Upp Upp War Machines Disabled 27 | . . 2 . 5 2 5 1 1 9 . 2 . . . Max in Single Turn 5 | . . 1 . 1 1 1 1 1 5 . 1 . . . Garrison Access 3 | . . . . . 1 . . . 1 . 1 . . . Garrison Relay 4 | . . . . 4 . . . . . . . . . . Machines Repaired . | . . . . . . . . . . . . . . . Machines Dismantled . | . . . . . . . . . . . . . . . Machines Sabotaged . | . . . . . . . . . . . . . . . Overloaded Fab Kills . | . . . . . . . . . . . . . . . Hacking | -11 -10 -10 -8 -8 -8 -8 -8 -6 -5 -5 -5 -5 -5 -5 --------- Run | Yrd Mat Sub Mat Gar Mat Sto Rec Fac Fac Was Fac Upp Upp War Machines Accessed 37 | . 6 1 1 3 4 10 4 1 2 . 3 1 . 1 Terminals 27 | . 6 . . 3 2 8 4 1 1 . 2 . . . Fabricators . | . . . . . . . . . . . . . . . Repair Stations 2 | . . . . . . 2 . . . . . . . . Recycling Units . | . . . . . . . . . . . . . . . Scanalyzers 1 | . . . . . 1 . . . . . . . . . Garrison Access 4 | . . . 1 . 1 . . . 1 . 1 . . . Total Hacks 87 | . 18 1 1 9 10 23 10 2 5 . 6 1 . 1 Successful 32 | . 6 1 1 1 2 12 2 . 2 . 3 1 . 1 Failed 54 | . 11 . . 8 8 11 8 2 3 . 3 . . . Catastrophic 9 | . . . . . 2 2 3 1 1 . . . . . Database Lockouts 1 | . 1 . . . . . . . . . . . . . Manual 52 | . 17 . . . 4 15 9 2 1 . 4 . . . Terminals 69 | . 18 . . 9 4 19 10 2 2 . 5 . . . Fabricators . | . . . . . . . . . . . . . . . Repair Stations 4 | . . . . . . 4 . . . . . . . . Recycling Units . | . . . . . . . . . . . . . . . Scanalyzers 3 | . . . . . 3 . . . . . . . . . Garrison Access 8 | . . . 1 . 3 . . . 3 . 1 . . . Terminal Hacks 16 | . 3 1 . 1 . 6 2 . . . 1 1 . 1 Record 1 | . . . . . . . 1 . . . . . . . Robot Analysis 1 | . 1 . . . . . . . . . . . . . Prototype ID Bank 2 | . 2 . . . . . . . . . . . . . Open Door 5 | . . . . . . 3 . . . . . 1 . 1 Branch Access Points 1 | . . . . . . . . . . . 1 . . . Emergency Access Points 1 | . . . . 1 . . . . . . . . . . Alert Level 1 | . . . . . . 1 . . . . . . . . Unreport Threat 2 | . . . . . . 1 1 . . . . . . . Locate Traps 1 | . . . . . . 1 . . . . . . . . Derelict Proto ID Bank 1 | . . 1 . . . . . . . . . . . . Fabricator Hacks . | . . . . . . . . . . . . . . . Repair Station Hacks 4 | . . . . . . 4 . . . . . . . . Scan Component 2 | . . . . . . 2 . . . . . . . . Repair 2 | . . . . . . 2 . . . . . . . . Recycling Unit Hacks . | . . . . . . . . . . . . . . . Scanalyzer 2 | . . . . . 2 . . . . . . . . . Insert Component 1 | . . . . . 1 . . . . . . . . . Analyze 1 | . . . . . 1 . . . . . . . . . Garrison Access Hacks 3 | . . . 1 . . . . . 1 . 1 . . . Unlock Access 1 | . . . 1 . . . . . . . . . . . Seal Access 2 | . . . . . . . . . 1 . 1 . . . Unauthorized Hacks 7 | . 3 . . . . 2 . . 1 . 1 . . . Terminals 7 | . 3 . . . . 2 . . 1 . 1 . . . Botnet 7 | . 3 . . . . 2 . . 1 . 1 . . . Fabricators . | . . . . . . . . . . . . . . . Repair Stations . | . . . . . . . . . . . . . . . Recycling Units . | . . . . . . . . . . . . . . . Scanalyzers . | . . . . . . . . . . . . . . . Garrison Access . | . . . . . . . . . . . . . . . Data Cores Recovered . | . . . . . . . . . . . . . . . Used . | . . . . . . . . . . . . . . . Hacking Detections 27 | . 5 . . 2 4 7 4 1 2 . 2 . . . Full Trace Events 5 | . 1 . . 1 3 . . . . . . . . . Feedback Events . | . . . . . . . . . . . . . . . Feedback Blocked . | . . . . . . . . . . . . . . . Robot Schematics Acquired . | . . . . . . . . . . . . . . . Robots Built . | . . . . . . . . . . . . . . . Authchips . | . . . . . . . . . . . . . . . Time . | . . . . . . . . . . . . . . . Total Robot Build Rating . | . . . . . . . . . . . . . . . Part Schematics Acquired 1 | . . . . . 1 . . . . . . . . . Parts Built . | . . . . . . . . . . . . . . . Authchips . | . . . . . . . . . . . . . . . Time . | . . . . . . . . . . . . . . . Total Part Build Rating . | . . . . . . . . . . . . . . . Parts Repaired 2 | . . . . . . 2 . . . . . . . . Time 88 | . . . . . . 88 . . . . . . . . Parts Recycled . | . . . . . . . . . . . . . . . Recycled Matter . | . . . . . . . . . . . . . . . Retrieved Matter . | . . . . . . . . . . . . . . . Retrieved Components . | . . . . . . . . . . . . . . . Parts Scanalyzed 1 | . . . . . 1 . . . . . . . . . Part Schematics Acquired 1 | . . . . . 1 . . . . . . . . . Parts Damaged . | . . . . . . . . . . . . . . . Bothacking | -11 -10 -10 -8 -8 -8 -8 -8 -6 -5 -5 -5 -5 -5 -5 ------------ Run | Yrd Mat Sub Mat Gar Mat Sto Rec Fac Fac Was Fac Upp Upp War Used RIF Installer . | . . . . . . . . . . . . . . . Robots Hacked . | . . . . . . . . . . . . . . . Non-combat . | . . . . . . . . . . . . . . . Combat . | . . . . . . . . . . . . . . . Robot Hacks Applied . | . . . . . . . . . . . . . . . Relay Couplers Released 17 | . . . . 15 2 . . . . . . . . . Machine Destruction 17 | . . . . 15 2 . . . . . . . . . Fabnet Peak Effective % . | . . . . . . . . . . . . . . . Robots Rewired 7 | . . . . 2 . . . . . . . . . 5 Allies Hacked 1 | . . . . 1 . . . . . . . . . . Hacks Repelled . | . . . . . . . . . . . . . . . Allies | -11 -10 -10 -8 -8 -8 -8 -8 -6 -5 -5 -5 -5 -5 -5 -------- Run | Yrd Mat Sub Mat Gar Mat Sto Rec Fac Fac Was Fac Upp Upp War Total Allies 17 | . . . . 2 . 10 . . . . . . . 5 Largest Group 10 | . . . . 2 . 10 10 10 . . . . . 5 Highest-Rated Group 263 | . . . . 45 . 173 173 173 . . . . . 263 Highest-Rated Ally 65 | . . . . 25 . 29 29 29 . . . . . 65 Total Orders . | . . . . . . . . . . . . . . . Ally Attacks 107 | . . . . 20 . . 26 26 . . . . . 35 Total Damage 2604 | . . . . 581 . . 368 334 . . . . . 1321 Kills 18 | . . . . 6 . . 3 4 . . . . . 5 Allies Corrupted 2 | . . . . 1 . . . . . . . . . 1 Allies Melted 2 | . . . . . . . . . . . . . . 2 Intel | -11 -10 -10 -8 -8 -8 -8 -8 -6 -5 -5 -5 -5 -5 -5 ------- Run | Yrd Mat Sub Mat Gar Mat Sto Rec Fac Fac Was Fac Upp Upp War Robot Analysis Total 1 | . 1 . . . . . . . . . . . . . Derelict Logs Recovered 5 | . . 1 . . . . . . . . . 1 3 . Drone Launches . | . . . . . . . . . . . . . . . Drone Recoveries . | . . . . . . . . . . . . . . . Exploration | -11 -10 -10 -8 -8 -8 -8 -8 -6 -5 -5 -5 -5 -5 -5 ------------- Run | Yrd Mat Sub Mat Gar Mat Sto Rec Fac Fac Was Fac Upp Upp War Turns Passed 14660 | 2 988 1735 644 1683 831 1084 1620 946 483 783 1048 899 562 1352 Spaces Moved 6216 | 2 474 868 308 602 303 419 712 366 210 391 409 420 275 457 Core 4 | . . . . . . . . . . . . . . 4 Treads 1055 | . . . . 119 . 29 712 165 . . . . . 30 Legs 2874 | 2 451 60 . . 32 . . 201 210 391 409 420 275 423 Wheels 2283 | . 23 808 308 483 271 390 . . . . . . . . Hover . | . . . . . . . . . . . . . . . Flight . | . . . . . . . . . . . . . . . Fastest Speed 120 | 120 120 129 129 190 140 140 225 197 200 200 168 200 200 200 Average Speed 200 | 120 149 168 152 220 198 180 225 229 200 200 198 200 200 276 Slowest Speed 2050 | 120 190 750 190 560 330 465 225 340 200 200 270 200 200 2050 Overloaded Moves . | . . . . . . . . . . . . . . . Propulsion Burnouts . | . . . . . . . . . . . . . . . Robots Hopped . | . . . . . . . . . . . . . . . Cave-ins Triggered . | . . . . . . . . . . . . . . . Exploration Rate (%) 46 | 2 53 37 29 56 21 84 99 9 8 96 18 68 50 70 Regions Visited 14 Branch Regions 6 Pre-discovered Areas 3 | . . 1 . . . . . . . . . 1 1 . Known Exits Taken 6 | . . . 1 . 1 . . 1 . . 1 1 1 . Unknown Exits Taken 5 | 1 1 1 . . . 1 1 . . . . . . . Scrap Searched 13 | . . 8 . . . . . . . . . 4 1 . Spaces Dug 15 | . . 2 11 . . 1 . . . . 1 . . . Terrain Destroyed 336 | . 16 9 41 . 46 3 . 1 67 . 100 29 18 6 Melee 3 | . . 2 . . . 1 . . . . . . . . Projectile 27 | . . . . . 8 2 . 1 . . 4 4 2 6 AOE 306 | . 16 7 41 . 38 . . . 67 . 96 25 16 . Terrain Rammed . | . . . . . . . . . . . . . . . Walls Destroyed . | . . . . . . . . . . . . . . . Machines Disabled . | . . . . . . . . . . . . . . . Actions | -11 -10 -10 -8 -8 -8 -8 -8 -6 -5 -5 -5 -5 -5 -5 --------- Run | Yrd Mat Sub Mat Gar Mat Sto Rec Fac Fac Was Fac Upp Upp War Total 7648 | 1 716 1012 428 837 430 661 722 435 249 393 526 445 280 513 Wait 580 | . 201 37 26 39 46 142 2 24 9 . 43 1 . 10 Move 6203 | 1 473 867 307 601 302 418 711 365 210 390 408 419 274 457 Hop . | . . . . . . . . . . . . . . . Pick Up 74 | . 3 14 18 1 3 19 1 1 . 2 4 4 . 4 Fast Attach 32 | . 2 6 5 5 2 9 . . . . 2 . . 1 Attach 47 | . . 6 8 4 6 2 . 10 3 . 3 1 1 3 Detach 11 | . . 2 1 . . . . 4 . 1 1 1 . 1 Swap 51 | . 7 9 5 9 8 6 . 4 2 . 1 . . . Drop 72 | . 4 3 10 5 8 20 2 8 9 . 2 . . 1 Fire 389 | . 20 32 14 97 54 43 2 19 16 . 55 19 5 13 Melee 71 | . . 36 34 . . 1 . . . . . . . . Ram 2 | . . . . . 1 1 . . . . . . . . Kick 13 | . 6 . . . . . . . . . 7 . . . Crush 4 | . . . . . . . 4 . . . . . . . Escape Stasis 23 | . . . . 23 . . . . . . . . . . Rewire 76 | . . . . 53 . . . . . . . . . 23 Trap . | . . . . . . . . . . . . . . . Miscellaneous . | . . . . . . . . . . . . . . . Route ------- -11/Scrapyard -10/Materials (discovered 3 exits: [*Mat] / [*Min] / *Sub) -10/Subcaves -8/Materials (discovered 3 exits: *Sto x2 / Gar) -8/Garrison -8/Materials -8/Storage (discovered 2 exits: [*Fac] / *Rec) -8/Recycling -6/Factory -5/Factory -5/Waste -5/Factory (discovered 2 exits: *Upp x2) -5/Upper Caves -5/Upper Caves (discovered 2 exits: Fac / *War) -5/Warlord (discovered 1 exit: [*Pro]) History --------- Turn | Location | Event 1 | -11/Scrapyard | Discovered new exit (range 1) 3 | -11/Scrapyard | Entered Materials 258 | -10/Materials | Discovered new exit (range 13) 307 | -10/Materials | Build established: Mutant 562 | -10/Materials | Discovered new exit (range 4) 720 | -10/Materials | Central database locked down 967 | -10/Materials | Discovered new exit (range 4) 991 | -10/Materials | Entered Subcaves 992 | -10/Subcaves | A swath of the cavern ceiling suddenly collapsed 1127 | -10/Subcaves | Lost 4 parts (1p1n1u1w) 1157 | -10/Subcaves | Learned location of Zion (-7) 1157 | -10/Subcaves | Met a Zionite searching for "candidates" 1329 | -10/Subcaves | Visited 4L-MR0's lab 1354 | -10/Subcaves | Found Meta Core 1492 | -10/Subcaves | A swath of the cavern ceiling suddenly collapsed 1700 | -10/Subcaves | Discovered new exit (range 9) 1741 | -10/Subcaves | Disturbed a concealed Subdweller 2204 | -10/Subcaves | A Subdweller sparked back to life 2204 | -10/Subcaves | A Subdweller sparked back to life 2301 | -10/Subcaves | Core integrity fell below 50% 2354 | -10/Subcaves | Found Cargo Legs 2726 | -10/Subcaves | Entered Materials 2726 | -8/Materials | Evolved 4 slots: Propulsion x1, Utility x2, Weapon x1 2726 | -8/Materials | Discovered new exit (range 8) 2727 | -8/Materials | Identified exit to Storage 3033 | -8/Materials | Build established: Derelict-Mutant 3332 | -8/Materials | Identified exit to Garrison 3370 | -8/Materials | Entered Garrison 3428 | -8/Garrison | Triggered checkpoint 3495 | -8/Garrison | Garrison Relay disabled 3622 | -8/Garrison | Triggered checkpoint 3746 | -8/Garrison | Build established: Scavenger-Tank 3951 | -8/Garrison | Discovered new exit (range 12) 4228 | -8/Garrison | Triggered checkpoint 4278 | -8/Garrison | Garrison Relay disabled 4411 | -8/Garrison | Triggered checkpoint 4452 | -8/Garrison | Garrison Relay disabled 4483 | -8/Garrison | Triggered checkpoint 4609 | -8/Garrison | Spotted B-75 Beast 4706 | -8/Garrison | Triggered checkpoint 4806 | -8/Garrison | Garrison Relay disabled 4826 | -8/Garrison | Triggered checkpoint 5053 | -8/Garrison | Entered Materials 5524 | -8/Materials | Discovered exit to Storage (range 16) 5592 | -8/Materials | Garrison activated, responded to threat 5853 | -8/Materials | First assault squad dispatched 5855 | -8/Materials | Core integrity fell below 50% 5884 | -8/Materials | Entered Storage 5885 | -8/Storage | Destroyed 12 combat bots 6103 | -8/Storage | Repaired Gauss Rifle 6161 | -8/Storage | Repaired Hvy. Rocket Launcher 6385 | -8/Storage | Build established: Scavenger-Gunner 6519 | -8/Storage | Discovered new exit (range 16) 6867 | -8/Storage | Assisted by bots powering up and referring to "LRC-V3" 6949 | -8/Storage | Used back door to open Recycling access 6949 | -8/Storage | Discovered new exit (range 5) 6968 | -8/Storage | Entered Recycling 6968 | -8/Recycling | Accompanied by 10 allies 6969 | -8/Recycling | Found Scrap Engine 7161 | -8/Recycling | Build established: Commander-Gunner 8554 | -8/Recycling | Discovered new exit (range 15) 8588 | -8/Recycling | Entered Factory 8588 | -6/Factory | Accompanied by 10 allies 8588 | -6/Factory | Evolved 4 slots: Propulsion x1, Utility x3 8907 | -6/Factory | Lost 8 allies 9166 | -6/Factory | Build established: Skirmisher 9345 | -6/Factory | Discovered new exit (range 13) 9387 | -6/Factory | Identified exit to Factory 9512 | -6/Factory | Attached Cargo Legs, gained temporary slots: Utility x2 9534 | -6/Factory | Entered another Factory area 9534 | -5/Factory | Evolved 2 slots: Power x1, Weapon x1 9565 | -5/Factory | Attached Meta Core, gained temporary slots: Propulsion, Utility, Weapon 9902 | -5/Factory | Destroyed 7 combat bots 10017 | -5/Factory | Sucked down chute 10017 | -5/Factory | Entered Waste 10017 | -5/Waste | The area was eerily silent 10018 | -5/Waste | Build established: Tank 10643 | -5/Waste | Found Damper Plating 10698 | -5/Waste | Discovered new exit (range 15) 10770 | -5/Waste | A Compactor rumbled back to life 10778 | -5/Waste | Spotted C-40 Crusher 10786 | -5/Waste | Identified exit to Factory 10800 | -5/Waste | Entered Factory 11236 | -5/Factory | Build established: Gunner 11354 | -5/Factory | Identified exit to Upper Caves 11775 | -5/Factory | Destroyed 8 combat bots 11848 | -5/Factory | Entered Upper Caves 11855 | -5/Upper Caves | Met a Warlord Commander 11856 | -5/Upper Caves | Learned location of Warlord (-5) 11857 | -5/Upper Caves | Warlord Commander delivered Encrypted Comm Array 11938 | -5/Upper Caves | Learned 4 Factory zone layouts 12036 | -5/Upper Caves | Spotted B-75 Beast 12052 | -5/Upper Caves | Destroyed B-75 Beast 12379 | -5/Upper Caves | Attracted the attention of an 0b10 checkpoint 12723 | -5/Upper Caves | Discovered new exit (range 9) 12745 | -5/Upper Caves | Identified exit to Upper Caves 12747 | -5/Upper Caves | Entered another Upper Caves area 13161 | -5/Upper Caves | Learned Factory interactive machine intel 13261 | -5/Upper Caves | Identified exit to Factory 13279 | -5/Upper Caves | Learned location of Armory (-3) 13297 | -5/Upper Caves | Discovered new exit (range 8) 13307 | -5/Upper Caves | Identified exit to Warlord 13309 | -5/Upper Caves | Entered Warlord 13381 | -5/Warlord | System corruption cleaned by Quarantine Array 13687 | -5/Warlord | Visited the Vortex Lab 13692 | -5/Warlord | Warlord's base attacked by MAIN.C 13913 | -5/Warlord | Build established: Commander-Gunner 14024 | -5/Warlord | Met Warlord 14042 | -5/Warlord | Warlord forces counterattacked 14250 | -5/Warlord | Spotted Striker 14343 | -5/Warlord | P-70 Sage assimilated allied Disruptor 6b 14355 | -5/Warlord | Spotted Striker 14367 | -5/Warlord | Warlord base infiltrated, sounded retreat 14371 | -5/Warlord | Destroyed Striker 14388 | -5/Warlord | Spotted Striker 14438 | -5/Warlord | Lost 5 parts (1p1n2u1w) 14438 | -5/Warlord | Lost 7 allies 14453 | -5/Warlord | Spotted Striker 14505 | -5/Warlord | Spotted Striker 14505 | -5/Warlord | Spotted Executioner 14511 | -5/Warlord | Core integrity fell below 50% 14515 | -5/Warlord | Spotted Striker 14563 | -5/Warlord | Lost 6 parts (1n2u3w) 14573 | -5/Warlord | Lost 14 allies 14596 | -5/Warlord | Spotted Executioner 14602 | -5/Warlord | Spotted Executioner 14613 | -5/Warlord | Discovered new exit (range 22) 14644 | -5/Warlord | Core integrity fell below 20% 14657 | -5/Warlord | Lost 8 allies 14661 | -5/Warlord | Destroyed by Executioner with Helical Railgun Last Messages --------------- 14646_ Penetrated by Slug. 14646_ Slug penetrates Earth. 14646_ Penetrated by Slug. 14650_ Slug penetrates Earth. 14652_ Penetrated by Slug. 14652_ Slug penetrates Earth. 14652_ Penetrated by Slug. 14652_ Entropic Driver Construct/C destroyed. 14652_ Arm. Scrap Engine damaged due to network destabilization (-10). 14654_ Adv. Targeting Computer destroyed. 14654_ Penetrated by Slug. 14654_ Fission-Nuclear Core destroyed. 14654_ Arm. Scrap Engine damaged due to network destabilization (-8). 14654_ Slug penetrates Earth. 14655_ Penetrated by Slug. 14656_ Exp. Optical Array destroyed. 14658_ Penetrated by Slug. 14660_ The unstable cave ceiling collapses. 14660_ Arm. Scrap Engine destroyed. 14660_ Scrap Engine core remains intact and functional. Map ----- +----------------------------------------------------+ | ??????????????????????????????????? | | ??????????????????????????????????? | | ??????????????????????????????????? | | ??????????????????????????????????? | | ??????????????????????????##??????? | | ?????????????????????????# #????? | | ????????????? ?????????? ????? | | ???????????? #?????????